{"text_format":"1","workbook":"xlsx","n_sheets":3,"sheets":["ALFABETICA","JUSTIFICATIVA 8 HORAS","JUSTIFICATIVA 6 HORAS old"],"not_rendered":{"charts":0,"images":1,"macros":0,"external_links":1,"defined_names":2,"comments":0,"pivot_tables":0},"unopened":[],"bounds":{"document_bytes":16777216,"sheet_cells":100000,"rows_first":2000,"rows_last":500,"rows_between":2000,"halvings":0,"cell_chars":16384,"cell_head_chars":4096},"cells_cut":0,"cells_raw":0,"read":"whole","date_system":"1904"}

{"sheet":"ALFABETICA","index":0,"n_rows":224,"n_cols":6,"rows_kept":224,"cut":false,"hidden":true,"merged":[]}
["Matricula","Nome","Cargo","Secretaria","LocalTrab","Cpf"]
[42146,"1ª VARA DO TRABALHO DE BAURU TRT 15ª R.","INDENIZACAO","SECRETARIA MUNICIPAL DO MEIO AMBIENTE","SECRETARIA MUNICIPAL DO MEIO AMBIENTE","999.999.999-99"]
[42142,"3ª VARA CIVEL DA COMARCA DE BAURU","INDENIZACAO","SECRETARIA MUNICIPAL DO MEIO AMBIENTE","SECRETARIA MUNICIPAL DO MEIO AMBIENTE","740.568.438-64"]
[14888,"ACACIO MENEZES DE OLIVEIRA","COLETOR DE LIXO","SECRETARIA MUNICIPAL DO MEIO AMBIENTE","SECAO DE MANEJO ANIMAL","120.121.458-09"]
[32615,"ADRIANO BRUNO DA CRUZ REQUENA","FUNCAO DE CONFIANCA DE DIRETOR DIVISAO","SECRETARIA MUNICIPAL DO MEIO AMBIENTE","DIVISAO DE PRACAS E AREAS VERDES","290.742.718-04"]
[22745,"AGUINALDO JOAQUIM DOS SANTOS","AJUDANTE GERAL","SECRETARIA MUNICIPAL DO MEIO AMBIENTE","SECAO DE VETERINARIA","039.957.658-40"]
[29567,"AILTON DA SILVA ROSA","AJUDANTE GERAL","SECRETARIA MUNICIPAL DO MEIO AMBIENTE","SECAO DE JARDINAGEM","170.409.978-19"]
[34088,"ALEF ALBERT DA SILVA BOTELHO","AJUDANTE GERAL","SECRETARIA MUNICIPAL DO MEIO AMBIENTE","SECAO DE PRODUTOS RECICLAVEIS","424.020.548-40"]
[32279,"ALEX MARCIANO BUENO","CHEFE DE SECAO","SECRETARIA MUNICIPAL DO MEIO AMBIENTE","SECAO DE MANUTENCAO E CONSERVACAO DE PRA","337.681.098-28"]
[33503,"ALEXANDRE PEIXOTO DE OLIVEIRA","AJUDANTE GERAL","SECRETARIA MUNICIPAL DO MEIO AMBIENTE","SECAO DE PRODUTOS RECICLAVEIS","158.172.838-75"]
[34104,"ALEXANDRE VIEIRA","AJUDANTE GERAL","SECRETARIA MUNICIPAL DO MEIO AMBIENTE","SECAO DE PRODUTOS RECICLAVEIS","263.368.758-06"]
[34750,"ALICIA GIOLO HIPPOLITO","MEDICO VETERINARIO","SECRETARIA MUNICIPAL DO MEIO AMBIENTE","SECAO DE VETERINARIA","344.258.518-03"]
[32658,"ALISON MARTINS PEREIRA","AGENTE DE PROTECAO AMBIENTAL","SECRETARIA MUNICIPAL DO MEIO AMBIENTE","SECAO DE FISCALIZACAO AMBIENTAL","291.504.708-17"]
[15362,"ALONSO RAMOS DOS SANTOS","ENCARREGADO DE SECAO","SECRETARIA MUNICIPAL DO MEIO AMBIENTE","SECAO DE PRODUTOS RECICLAVEIS","120.029.908-67"]
[70608,"AMANDA MARTINS GASPARINI","CIÊNCIAS BIOLÓGICAS","SECRETARIA MUNICIPAL DO MEIO AMBIENTE","SECAO DE EDUCACAO AMBIENTAL","448.600.238-54"]
[33018,"AMANDA NEVES DE ASSIS MANSO","ATENDENTE","SECRETARIA MUNICIPAL DO MEIO AMBIENTE","DEPARTAMENTO DE ACOES E RECURSOS AMBIENT","222.679.888-95"]
[21022,"AMILTON JOSE DONDA","MOTORISTA","SECRETARIA MUNICIPAL DO MEIO AMBIENTE","DIVISAO DE JARDIM BOTANICO","002.728.007-16"]
[800507,"ANA PAULA SOUZA SEMENTILLE","AGENTE DE SANEAMENTO","SECRETARIA MUNICIPAL DO MEIO AMBIENTE","SECAO DE ESTUDOS E CONSCIENTIZACAO AMBIE","318.879.468-10"]
[32301,"ANDERSON RIBEIRO DOS SANTOS","GUARDA-PARQUE","SECRETARIA MUNICIPAL DO MEIO AMBIENTE","SECAO DE RESERVA ECOLOGICA","267.377.028-30"]
[29969,"ANDRE LUIZ DOS SANTOS","SERVENTE DE PEDREIRO","SECRETARIA MUNICIPAL DO MEIO AMBIENTE","DIVISAO DE PRACAS E AREAS VERDES","228.053.308-11"]
[20669,"ANDRE LUIZ GARCIA","AJUDANTE GERAL","SECRETARIA MUNICIPAL DO MEIO AMBIENTE","SECAO DE MANUTENCAO E CONSERVACAO DE PRA","110.622.048-08"]
[33743,"ANDRESSA RODRIGUES AGUIAR","CHEFE DE SECAO","SECRETARIA MUNICIPAL DO MEIO AMBIENTE","SECAO DE PLANEJAMENTO E EXECUCAO PAISAGI","405.060.938-08"]
[29386,"ANGELA MARIA DE CARVALHO LOPES","AJUDANTE GERAL","SECRETARIA MUNICIPAL DO MEIO AMBIENTE","SECAO DE MANEJO ANIMAL","274.956.768-84"]
[16192,"ANTENOR MARTINS","PEDREIRO","SECRETARIA MUNICIPAL DO MEIO AMBIENTE","DIVISAO DE PRACAS E AREAS VERDES","015.394.628-89"]
[29391,"ANTONIA TELMA DE ABREU MOURA","AJUDANTE GERAL","SECRETARIA MUNICIPAL DO MEIO AMBIENTE","SECAO DE ADM E MANUT PCAS E AREAS VERDES","251.573.228-36"]
[29736,"ANTONIO CARLOS DA CRUZ REQUENA","MOTORISTA","SECRETARIA MUNICIPAL DO MEIO AMBIENTE","SECAO DE MANUTENCAO E CONSERVACAO DE PRA","267.169.528-45"]
[31088,"ANTONIO CARLOS PEREZIM BASILIO","AJUDANTE GERAL","SECRETARIA MUNICIPAL DO MEIO AMBIENTE","SECAO DE COLECOES VEGETAIS","143.149.268-05"]
[20942,"ANTONIO FERREIRA ARMENDROZ","AJUDANTE GERAL","SECRETARIA MUNICIPAL DO MEIO AMBIENTE","SECAO DE MANUTENCAO E CONSERVACAO DE PRA","141.229.648-06"]
[14074,"ANTONIO MARQUES PEREIRA","JARDINEIRO","SECRETARIA MUNICIPAL DO MEIO AMBIENTE","SECAO DE MANUTENCAO E CONSERVACAO DE PRA","024.268.298-77"]
[30605,"ANTONIO NAVARRO","SERVENTE DE LIMPEZA","SECRETARIA MUNICIPAL DO MEIO AMBIENTE","SECAO DE MANUTENCAO E CONSERVACAO DE PRA","058.385.948-88"]
[32612,"ANTONIO ZANOTTO FILHO","FISCAL DE POSTURAS MUNICIPAIS","SECRETARIA MUNICIPAL DO MEIO AMBIENTE","DIVISAO DE CONTROLE E PROJETOS AMBIENTAI","100.005.328-86"]
[21007,"APARECIDO PEREIRA DE OLIVERA","AJUDANTE GERAL","SECRETARIA MUNICIPAL DO MEIO AMBIENTE","SECAO DE ADMINISTRACAO E MANUTENCAO - ZO","079.023.298-78"]
[34198,"BARBARA SILVA PEREIRA","AGENTE DE ADMINISTRACAO","SECRETARIA MUNICIPAL DO MEIO AMBIENTE","DIVISAO DE JARDIM BOTANICO","375.692.628-16"]
[28342,"BENEDITO DA CRUZ MIRANDA","AJUDANTE GERAL","SECRETARIA MUNICIPAL DO MEIO AMBIENTE","SECAO DE MANUTENCAO E CONSERVACAO DE PRA","137.237.358-60"]
[35737,"CARLOS GABRIEL LOPES DO NASCIMENTO","ENGENHEIRO AMBIENTAL","SECRETARIA MUNICIPAL DO MEIO AMBIENTE","DEPARTAMENTO ZOO-BOTANICO","101.501.169-18"]
[16191,"CARLOS ROBERTO REZENDE","CHEFE DE SECAO","SECRETARIA MUNICIPAL DO MEIO AMBIENTE","SECAO DE ADMINISTRACAO E MANUTENCAO - ZO","161.752.288-04"]
[13757,"CARLOS ROBERTO SIMOES","AJUDANTE GERAL","SECRETARIA MUNICIPAL DO MEIO AMBIENTE","SECAO DE PRODUTOS RECICLAVEIS","067.935.088-81"]
[21050,"CARMELINO DE OLIVEIRA","AJUDANTE GERAL","SECRETARIA MUNICIPAL DO MEIO AMBIENTE","SECAO DE JARDINAGEM","058.508.158-13"]
[29344,"CARMENLUCI APARECIDA DA SILVA CAMARGO","AGENTE DE ADMINISTRACAO","SECRETARIA MUNICIPAL DO MEIO AMBIENTE","DIVISAO DE CONTROLE E PROJETOS AMBIENTAI","378.615.038-95"]
[25754,"CICERO MARCELINO PATROCINIO","AJUDANTE GERAL","SECRETARIA MUNICIPAL DO MEIO AMBIENTE","SECAO DE PRODUTOS RECICLAVEIS","067.795.208-29"]
[20763,"CLAUDEMIR BARBOSA GARCIA","AJUDANTE GERAL","SECRETARIA MUNICIPAL DO MEIO AMBIENTE","SECAO DE MANUTENCAO E CONSERVACAO DE PRA","120.259.028-40"]
[29836,"CLAUDEMIR CARLOS BARBOSA","PEDREIRO","SECRETARIA MUNICIPAL DO MEIO AMBIENTE","SECAO DE MANUTENCAO E CONSERVACAO DE PRA","142.856.318-06"]
[21472,"CLAUDEMIRO LOPES FERREIRA","ENCARREGADO DE SECAO","SECRETARIA MUNICIPAL DO MEIO AMBIENTE","SECAO DE PRODUTOS RECICLAVEIS","096.101.668-06"]
[29357,"CLAUDIA CRISTINA DA COSTA LADEIRA","FUNCAO DE CONFIANCA DE DIRETOR DIVISAO","SECRETARIA MUNICIPAL DO MEIO AMBIENTE","DIVISAO DE ZOOLOGICO","181.069.428-05"]
[34024,"CLAUDINEI APARECIDO RODRIGUES","AJUDANTE GERAL","SECRETARIA MUNICIPAL DO MEIO AMBIENTE","SECAO DE PRODUTOS RECICLAVEIS","047.784.659-97"]
[14505,"CLAUDINEI PINHEIRO","COLETOR DE LIXO","SECRETARIA MUNICIPAL DO MEIO AMBIENTE","SECAO DE PRODUTOS RECICLAVEIS","103.149.528-29"]
[15957,"CLAUDIO RIBEIRO DOS SANTOS","AJUDANTE GERAL","SECRETARIA MUNICIPAL DO MEIO AMBIENTE","SECAO DE MANUTENCAO E CONSERVACAO DE PRA","044.520.378-10"]
[16653,"CLAUDIO ROBERTO ALVES","COLETOR DE LIXO","SECRETARIA MUNICIPAL DO MEIO AMBIENTE","SECAO DE PRODUTOS RECICLAVEIS","101.149.758-17"]
[24231,"CLOVIS ALVES DA SILVA","AJUDANTE GERAL","SECRETARIA MUNICIPAL DO MEIO AMBIENTE","SECAO DE MANUTENCAO E CONSERVACAO DE PRA","500.646.651-00"]
[34020,"CRISTIANO DE ABREU ARIELO","AJUDANTE GERAL","SECRETARIA MUNICIPAL DO MEIO AMBIENTE","SECAO DE MANEJO ANIMAL","251.101.638-98"]
[17434,"CRISTIANO HENRIQUE","AJUDANTE GERAL","SECRETARIA MUNICIPAL DO MEIO AMBIENTE","SECAO DE OBRAS E MANUTENCAO","170.609.988-61"]
[29525,"DANIEL CONTIERI ROLIM","DIRETOR DE DEPARTAMENTO","SECRETARIA MUNICIPAL DO MEIO AMBIENTE","DEPARTAMENTO ZOO-BOTANICO","214.606.538-90"]
[35416,"DANIEL LEIROZ BEVILAQUA","AJUDANTE GERAL","SECRETARIA MUNICIPAL DO MEIO AMBIENTE","SECAO DE PRODUTOS RECICLAVEIS","236.272.108-67"]
[33270,"DANIEL LOPES SILVA","GUARDA-PARQUE","SECRETARIA MUNICIPAL DO MEIO AMBIENTE","SECAO DE RESERVA ECOLOGICA","402.105.258-51"]
[32654,"DANIEL SANCHES DONATO","FUNCAO DE CONFIANCA DE DIRETOR DIVISAO","SECRETARIA MUNICIPAL DO MEIO AMBIENTE","SERVICO DE ADM. E EXPEDIENTE (SEMMA)","214.965.198-09"]
[35376,"DANIELE CRISTINA MORAES GRANNA DE ALMEIDA","AJUDANTE GERAL","SECRETARIA MUNICIPAL DO MEIO AMBIENTE","SECAO DE ADMINISTRACAO E MANUTENCAO - ZO","360.949.758-04"]
[70612,"DIOGO HENRIQUE DE OLIVEIRA MARTINS","CIÊNCIAS BIOLÓGICAS","SECRETARIA MUNICIPAL DO MEIO AMBIENTE","SECAO DE EDUCACAO AMBIENTAL","492.103.118-50"]
[20962,"DJALMA BRAS MARTINS","MOTORISTA","SECRETARIA MUNICIPAL DO MEIO AMBIENTE","DIVISAO DE PRACAS E AREAS VERDES","158.226.858-46"]
[35829,"DOUGLAS LOPES PEREIRA","MOTORISTA","SECRETARIA MUNICIPAL DO MEIO AMBIENTE","DIVISAO DE PRACAS E AREAS VERDES","286.003.998-82"]
[34071,"EDER NEVES BASILIO","AJUDANTE GERAL","SECRETARIA MUNICIPAL DO MEIO AMBIENTE","SECAO DE JARDINAGEM","328.446.078-02"]
[25800,"EDIR VENANCIO RIBEIRO","MOTORISTA","SECRETARIA MUNICIPAL DO MEIO AMBIENTE","SECAO DE PRODUTOS RECICLAVEIS","365.104.169-72"]
[14116,"EDMILSON RODRIGUES DA SILVA","MOTORISTA","SECRETARIA MUNICIPAL DO MEIO AMBIENTE","SECAO DE PRODUTOS RECICLAVEIS","068.129.718-20"]
[31121,"EDSON BONIFACIO TAMACHUNAS","GUARDA-PARQUE","SECRETARIA MUNICIPAL DO MEIO AMBIENTE","SECAO DE RESERVA ECOLOGICA","707.581.238-68"]
[30202,"EDUARDO RAFAEL MUNHOZ","MOTORISTA","SECRETARIA MUNICIPAL DO MEIO AMBIENTE","SECAO DE PRODUTOS RECICLAVEIS","068.130.838-99"]
[29511,"ELAINE REGINA PEREIRA DE MATTOS","CHEFE DE SECAO","SECRETARIA MUNICIPAL DO MEIO AMBIENTE","SECAO DE FISCALIZACAO AMBIENTAL","048.615.348-79"]
[30286,"ELIANA PEREIRA DAMASCENO","AGENTE DE ADMINISTRACAO","SECRETARIA MUNICIPAL DO MEIO AMBIENTE","SERVICO DE ADM. E EXPEDIENTE (SEMMA)","190.969.948-92"]
[30570,"ELIAS BENEDITO PEREIRA","PEDREIRO","SECRETARIA MUNICIPAL DO MEIO AMBIENTE","DIVISAO DE PRACAS E AREAS VERDES","067.777.778-73"]
[36177,"ELISEU VIRGINIO JUNIOR ","AJUDANTE GERAL","SECRETARIA MUNICIPAL DO MEIO AMBIENTE","SECAO DE MANEJO ANIMAL","410.734.458-44"]
[22763,"ELMO PEREIRA MARTINS","AJUDANTE GERAL","SECRETARIA MUNICIPAL DO MEIO AMBIENTE","SECAO DE PRODUTOS RECICLAVEIS","130.883.268-05"]
[36176,"ELSA XAVIER DA SILVA","AJUDANTE GERAL","SECRETARIA MUNICIPAL DO MEIO AMBIENTE","SECAO DE COLECOES VEGETAIS","255.116.258-09"]
[33746,"ELTON AZEVEDO DE FREITAS","AJUDANTE GERAL","SECRETARIA MUNICIPAL DO MEIO AMBIENTE","SECAO DE MANUTENCAO E CONSERVACAO DE PRA","401.522.288-10"]
[70646,"EMANUEL AUGUSTO LEITE MACEDO","CIÊNCIAS BIOLÓGICAS","SECRETARIA MUNICIPAL DO MEIO AMBIENTE","DEPARTAMENTO ZOO-BOTANICO","477.201.458-60"]
[14490,"ESMAEL LEITE FERREIRA","COLETOR DE LIXO","SECRETARIA MUNICIPAL DO MEIO AMBIENTE","SECAO DE MANEJO ANIMAL","099.836.748-66"]
[25116,"FABIANA APARECIDA FIGUEIREDO","AGENTE DE SANEAMENTO","SECRETARIA MUNICIPAL DO MEIO AMBIENTE","SECAO DE ESTUDOS E CONSCIENTIZACAO AMBIE","251.979.048-28"]
[23872,"FABIANO CAETANO PEROTA","AJUDANTE GERAL","SECRETARIA MUNICIPAL DO MEIO AMBIENTE","DIVISAO DE PRACAS E AREAS VERDES","200.144.238-63"]
[30362,"FABIO DA SILVA","MOTORISTA","SECRETARIA MUNICIPAL DO MEIO AMBIENTE","SERVICO DE ADM. E EXPEDIENTE (SEMMA)","223.931.418-47"]
[33128,"FERNANDA CEZARIO","AGENTE DE TURISMO","SECRETARIA MUNICIPAL DO MEIO AMBIENTE","DEPARTAMENTO DE ACOES E RECURSOS AMBIENT","216.024.838-09"]
[34605,"FERNANDA MARA ARAGÃO MACEDO PEREIRA","MEDICO VETERINARIO","SECRETARIA MUNICIPAL DO MEIO AMBIENTE","SECAO DE VETERINARIA","010.524.471-63"]
[32661,"FERNANDO RODRIGO DOS SANTOS MUSSI","OPERADOR DE MAQUINAS","SECRETARIA MUNICIPAL DO MEIO AMBIENTE","SECAO DE PESQUISAS EM RECURSOS NATURAIS","306.946.378-90"]
[32904,"FLAVIA MESSILA LEITAO","AGENTE DE ADMINISTRACAO","SECRETARIA MUNICIPAL DO MEIO AMBIENTE","SERVICO DE ADM. E EXPEDIENTE (SEMMA)","395.618.218-93"]
[31003,"FRANCISCO ROCHA JUNIOR","CHEFE DE SECAO","SECRETARIA MUNICIPAL DO MEIO AMBIENTE","SECAO DE PESQUISAS EM RECURSOS NATURAIS","273.396.568-98"]
[32270,"GABRIEL MOYA ZABOTINI","AGENTE DE PROTECAO AMBIENTAL","SECRETARIA MUNICIPAL DO MEIO AMBIENTE","DEPARTAMENTO ZOO-BOTANICO","279.416.778-22"]
[32542,"GABRIELA DOS SANTOS SOUZA MONTEIRO","ENGENHEIRO AGRONOMO","SECRETARIA MUNICIPAL DO MEIO AMBIENTE","DEPARTAMENTO ZOO-BOTANICO","355.237.398-55"]
[30579,"GEOVANA MARTIN","DESENHISTA TECNICO","SECRETARIA MUNICIPAL DO MEIO AMBIENTE","DEPARTAMENTO ZOO-BOTANICO","285.924.908-71"]
[20955,"GERALDO ALVES DA SILVA","AJUDANTE GERAL","SECRETARIA MUNICIPAL DO MEIO AMBIENTE","SECAO DE ADMINISTRACAO E MANUTENCAO - ZO","564.917.436-91"]
[31130,"GILBERTO HIDEYO IANAGUIHARA","AJUDANTE GERAL","SECRETARIA MUNICIPAL DO MEIO AMBIENTE","SECAO DE MANUTENCAO E CONSERVACAO DE PRA","327.739.609-63"]
[14395,"GILBERTO RODRIGUES","PEDREIRO","SECRETARIA MUNICIPAL DO MEIO AMBIENTE","SECAO DE MANUTENCAO E CONSERVACAO DE PRA","015.345.468-71"]
[20641,"GILDA MARIA SCALFI CARVALHO","TECNICO DE ADMINISTRACAO","SECRETARIA MUNICIPAL DO MEIO AMBIENTE","DEPARTAMENTO DE ACOES E RECURSOS AMBIENT","170.428.328-09"]
[23630,"GISELE CRISTINA VILAS BOAS CANTADOR","AGENTE DE ADMINISTRACAO","SECRETARIA MUNICIPAL DO MEIO AMBIENTE","DEPARTAMENTO DE ACOES E RECURSOS AMBIENT","253.523.578-13"]
[70606,"GUILHERME NATIVIO DAL PRA","CIÊNCIAS BIOLÓGICAS","SECRETARIA MUNICIPAL DO MEIO AMBIENTE","SECAO DE EDUCACAO AMBIENTAL","346.866.468-04"]
[20688,"HITLER FACIO FARIA","AJUDANTE GERAL","SECRETARIA MUNICIPAL DO MEIO AMBIENTE","SECAO DE EDUCACAO AMBIENTAL","191.422.128-12"]
[23308,"IDENYR PEREIRA DA SILVA","AJUDANTE GERAL","SECRETARIA MUNICIPAL DO MEIO AMBIENTE","DIVISAO DE PRACAS E AREAS VERDES","237.866.631-49"]
[25649,"ILSON SIMONAO DE OLIVEIRA","AJUDANTE GERAL","SECRETARIA MUNICIPAL DO MEIO AMBIENTE","SECAO DE OBRAS E MANUTENCAO","180.375.638-12"]
[33764,"ISABEL RAPHAEL TOBIAS","AJUDANTE GERAL","SECRETARIA MUNICIPAL DO MEIO AMBIENTE","SECAO DE NUTRICAO ANIMAL","067.988.008-90"]
[32389,"ISRAEL FERREIRA DA SILVA","CHEFE DE SECAO","SECRETARIA MUNICIPAL DO MEIO AMBIENTE","SECAO DE MANUTENCAO E REFORMA","257.021.018-80"]
[29527,"JAIME ZANIRATO","PEDREIRO","SECRETARIA MUNICIPAL DO MEIO AMBIENTE","SECAO DE MANUTENCAO E REFORMA","031.779.358-66"]
[29521,"JAIR EVANGELISTA DA COSTA","AJUDANTE GERAL","SECRETARIA MUNICIPAL DO MEIO AMBIENTE","SECAO DE MANUTENCAO E CONSERVACAO DE PRA","959.504.788-00"]
[32527,"JAIRO DO CARMO PEREIRA","AJUDANTE GERAL","SECRETARIA MUNICIPAL DO MEIO AMBIENTE","SECAO DE MANUTENCAO E CONSERVACAO DE PRA","394.808.648-60"]
[16652,"JOAO APARECIDO MIRANDA FERMINO","COLETOR DE LIXO","SECRETARIA MUNICIPAL DO MEIO AMBIENTE","SECAO DE PRODUTOS RECICLAVEIS","569.010.039-00"]
[35579,"JOAO PAULO AQUIRRA DO NASCIMENTO","MOTORISTA","SECRETARIA MUNICIPAL DO MEIO AMBIENTE","SECAO DE ADMINISTRACAO E MANUTENCAO - ZO","337.382.988-78"]
[70650,"JOAO VITOR RAMOS ROCHA","BIOLOGIA","SECRETARIA MUNICIPAL DO MEIO AMBIENTE","SECAO DE EDUCACAO AMBIENTAL","501.833.268-90"]
[13859,"JORGE LUIS NOBREGA","TECNICO DE ADMINISTRACAO","SECRETARIA MUNICIPAL DO MEIO AMBIENTE","SECRETARIA MUNICIPAL DO MEIO AMBIENTE","061.770.818-51"]
[33748,"JOSE CARLOS HANSEN","AJUDANTE GERAL","SECRETARIA MUNICIPAL DO MEIO AMBIENTE","SECRETARIA MUNICIPAL DO MEIO AMBIENTE","497.829.919-53"]
[20792,"JOSE CUSTODIO DA SILVA","COLETOR DE LIXO","SECRETARIA MUNICIPAL DO MEIO AMBIENTE","SECAO DE PRODUTOS RECICLAVEIS","096.182.038-16"]
[14896,"JOSE DONIZETE LEMES TEODORO","COLETOR DE LIXO","SECRETARIA MUNICIPAL DO MEIO AMBIENTE","SECAO DE PRODUTOS RECICLAVEIS","096.136.168-96"]
[21024,"JOSE ENDE DOS SANTOS","OPERADOR DE MAQUINAS","SECRETARIA MUNICIPAL DO MEIO AMBIENTE","SECAO DE PRODUTOS RECICLAVEIS","112.567.558-69"]
[30437,"JOSE FERNANDO DE CAMARGO BARROS","ARQUITETO","SECRETARIA MUNICIPAL DO MEIO AMBIENTE","DEPARTAMENTO ZOO-BOTANICO","058.393.558-36"]
[32623,"JOSE NICOLA CARDOSO DE ARAUJO","MOTORISTA","SECRETARIA MUNICIPAL DO MEIO AMBIENTE","SECAO DE PRODUTOS RECICLAVEIS","058.533.088-31"]
[30947,"JOSE RAFAEL PEREIRA LIMA","AJUDANTE GERAL","SECRETARIA MUNICIPAL DO MEIO AMBIENTE","SECAO DE ESTUDOS E CONSCIENTIZACAO AMBIE","369.096.698-19"]
[27642,"JOSE RICARDO DE OLIVEIRA VIEIRA","MOTORISTA","SECRETARIA MUNICIPAL DO MEIO AMBIENTE","DEPARTAMENTO ZOO-BOTANICO","053.000.118-78"]
[14592,"JOSINALDO NUNES DE ARAUJO","AJUDANTE GERAL","SECRETARIA MUNICIPAL DO MEIO AMBIENTE","SECAO DE JARDINAGEM","120.112.008-06"]
[30638,"JULIANA RIBEIRO VIEIRA","ATENDENTE","SECRETARIA MUNICIPAL DO MEIO AMBIENTE","DIVISAO DE CONTROLE E PROJETOS AMBIENTAI","415.505.278-43"]
[29976,"JULIANO RIBEIRO BARBOSA","CHEFE DE SECAO","SECRETARIA MUNICIPAL DO MEIO AMBIENTE","SECAO DE OBRAS E MANUTENCAO","327.201.428-40"]
[14975,"JULIO FRANCISCO","COLETOR DE LIXO","SECRETARIA MUNICIPAL DO MEIO AMBIENTE","SECAO DE NUTRICAO ANIMAL","096.105.098-51"]
[29396,"JULIO ROS SOBRINHO","AJUDANTE GERAL","SECRETARIA MUNICIPAL DO MEIO AMBIENTE","SECAO DE MANEJO ANIMAL","061.777.408-04"]
[29620,"LAERCIO DOS SANTOS","AJUDANTE GERAL","SECRETARIA MUNICIPAL DO MEIO AMBIENTE","SECAO DE MANUTENCAO E REFORMA","015.330.098-13"]
[30345,"LAINNI DE PAULA DIAS DOS SANTOS","AGENTE DE ADMINISTRACAO","SECRETARIA MUNICIPAL DO MEIO AMBIENTE","DEPARTAMENTO ZOO-BOTANICO","361.749.608-38"]
[30266,"LARISSA MAYUMI MITUUTI","ENGENHEIRO","SECRETARIA MUNICIPAL DO MEIO AMBIENTE","SECRETARIA MUNICIPAL DO MEIO AMBIENTE","322.828.328-33"]
[33720,"LAURINDO FERREIRA LIMA","MOTORISTA","SECRETARIA MUNICIPAL DO MEIO AMBIENTE","DIVISAO DE PRACAS E AREAS VERDES","253.983.438-82"]
[30019,"LAURO LEITE SOARES NETO","CHEFE DE SECAO","SECRETARIA MUNICIPAL DO MEIO AMBIENTE","SECAO DE VETERINARIA","280.122.818-48"]
[30111,"LEANDRO ACACIO DOS SANTOS","SERVENTE DE PEDREIRO","SECRETARIA MUNICIPAL DO MEIO AMBIENTE","SECAO DE MANUTENCAO E REFORMA","357.400.328-57"]
[34054,"LEANDRO CANDIDO DA SILVA","AJUDANTE GERAL","SECRETARIA MUNICIPAL DO MEIO AMBIENTE","SECAO DE ESTUDOS E CONSCIENTIZACAO AMBIE","325.484.218-99"]
[35279,"LEONARDO SANTIAGO DE FREITAS","AGENTE DE ADMINISTRACAO","SECRETARIA MUNICIPAL DO MEIO AMBIENTE","DEPARTAMENTO ZOO-BOTANICO","416.988.038-26"]
[35626,"LEVI MOMESSO","SECRETARIO MUNICIPAL","SECRETARIA MUNICIPAL DO MEIO AMBIENTE","SECRETARIA MUNICIPAL DO MEIO AMBIENTE","249.153.208-55"]
[31214,"LILIAM CRISTINA MUNIZ","AJUDANTE GERAL","SECRETARIA MUNICIPAL DO MEIO AMBIENTE","DIVISAO DE ZOOLOGICO","329.097.268-27"]
[29355,"LISLYE CRISTINA GOMES","CHEFE DE SECAO","SECRETARIA MUNICIPAL DO MEIO AMBIENTE","SECAO DE ADM E MANUT PCAS E AREAS VERDES","292.197.668-41"]
[29444,"LOURDES DE CASSIA PENTEADO","CHEFE DE SECAO","SECRETARIA MUNICIPAL DO MEIO AMBIENTE","SECAO DE PRODUCAO DE MUDAS","260.230.138-80"]
[31122,"LUCAS ALEXANDRE NUNES DE OLIVEIRA","GUARDA-PARQUE","SECRETARIA MUNICIPAL DO MEIO AMBIENTE","SECAO DE RESERVA ECOLOGICA","350.823.468-14"]
[34448,"LUCAS FERNANDO POSCA ","AJUDANTE GERAL","SECRETARIA MUNICIPAL DO MEIO AMBIENTE","SECAO DE HORTICULTURA","419.534.858-71"]
[31084,"LUCIANA AGUIAR","CHEFE DE SECAO","SECRETARIA MUNICIPAL DO MEIO AMBIENTE","SECAO DE NUTRICAO ANIMAL","312.408.058-02"]
[32605,"LUCIMARA APARECIDA DE SOUZA PEREIRA","ATENDENTE","SECRETARIA MUNICIPAL DO MEIO AMBIENTE","DEPARTAMENTO ZOO-BOTANICO","170.271.168-47"]
[20697,"LUIS CARLOS PEREIRA","COLETOR DE LIXO","SECRETARIA MUNICIPAL DO MEIO AMBIENTE","SECAO DE PRODUTOS RECICLAVEIS","141.238.078-28"]
[32663,"LUIS FERNANDO CORDEIRO AZEVEDO","MOTORISTA","SECRETARIA MUNICIPAL DO MEIO AMBIENTE","DIVISAO DE PRACAS E AREAS VERDES","302.679.548-83"]
[16824,"LUIS NORATO DA SILVA","AJUDANTE GERAL","SECRETARIA MUNICIPAL DO MEIO AMBIENTE","SECAO DE ADM E MANUT PCAS E AREAS VERDES","170.548.708-40"]
[25693,"LUIZ ANTONIO DE OLIVEIRA","AJUDANTE GERAL","SECRETARIA MUNICIPAL DO MEIO AMBIENTE","SECAO DE MANUTENCAO E CONSERVACAO DE PRA","049.661.588-26"]
[23094,"LUIZ CARLOS DE ALMEIDA NETO","FUNCAO DE CONFIANCA DE DIRETOR DIVISAO","SECRETARIA MUNICIPAL DO MEIO AMBIENTE","DIVISAO DE JARDIM BOTANICO","104.849.928-64"]
[14892,"LUIZ GABRIEL","COLETOR DE LIXO","SECRETARIA MUNICIPAL DO MEIO AMBIENTE","SECAO DE PRODUTOS RECICLAVEIS","096.149.138-86"]
[29696,"LUIZ HENRIQUE FACIN","MOTORISTA","SECRETARIA MUNICIPAL DO MEIO AMBIENTE","DIVISAO DE CONTROLE E PROJETOS AMBIENTAI","082.742.468-02"]
[20884,"LUIZ HENRIQUE RIBEIRO DE OLIVEIRA","AJUDANTE GERAL","SECRETARIA MUNICIPAL DO MEIO AMBIENTE","SECAO DE NUTRICAO ANIMAL","120.260.458-79"]
[23333,"LUIZ RODRIGUES","AJUDANTE GERAL","SECRETARIA MUNICIPAL DO MEIO AMBIENTE","SECAO DE JARDINAGEM","137.216.438-36"]
[32556,"MAISA JAMPAULI BERNARDES","BIÓLOGO","SECRETARIA MUNICIPAL DO MEIO AMBIENTE","SECAO DE EDUCACAO AMBIENTAL","405.688.508-74"]
[16544,"MANOEL ALVES DE ALCANTARA","AJUDANTE GERAL","SECRETARIA MUNICIPAL DO MEIO AMBIENTE","SECAO DE PRODUCAO DE MUDAS","039.959.278-40"]
[30917,"MANOEL RODRIGO BOFFI MARIANO","AJUDANTE GERAL","SECRETARIA MUNICIPAL DO MEIO AMBIENTE","SECAO DE JARDINAGEM","311.076.108-42"]
[30238,"MARCELA MATTOS DE ALMEIDA BESSA","ENGENHEIRO FLORESTAL","SECRETARIA MUNICIPAL DO MEIO AMBIENTE","DEPARTAMENTO ZOO-BOTANICO","270.124.298-36"]
[29387,"MARCELO CUSTODIO DA SILVA","AJUDANTE GERAL","SECRETARIA MUNICIPAL DO MEIO AMBIENTE","SECAO DE VETERINARIA","324.120.818-40"]
[22708,"MARCIO CARACA BARBOSA","AJUDANTE GERAL","SECRETARIA MUNICIPAL DO MEIO AMBIENTE","SECAO DE JARDINAGEM","251.421.818-75"]
[31090,"MARCIO EDUARDO CRUZ","GUARDA-PARQUE","SECRETARIA MUNICIPAL DO MEIO AMBIENTE","DIVISAO DE PRACAS E AREAS VERDES","278.828.358-03"]
[32505,"MARCIO HENRIQUE MERSCHMANN FABIS","ENGENHEIRO FLORESTAL","SECRETARIA MUNICIPAL DO MEIO AMBIENTE","DEPARTAMENTO ZOO-BOTANICO","308.555.698-24"]
[16788,"MARCIO MOJONI","AJUDANTE GERAL","SECRETARIA MUNICIPAL DO MEIO AMBIENTE","SECAO DE MANUTENCAO E CONSERVACAO DE PRA","145.821.648-97"]
[14523,"MARCOS ANTONIO MARTINS","COLETOR DE LIXO","SECRETARIA MUNICIPAL DO MEIO AMBIENTE","SECAO DE PRODUTOS RECICLAVEIS","061.775.808-58"]
[31014,"MARCOS CESAR DOS SANTOS GOMES","GUARDA-PARQUE","SECRETARIA MUNICIPAL DO MEIO AMBIENTE","SECAO DE RESERVA ECOLOGICA","174.032.568-08"]
[30358,"MARCOS PICCOLI FERREIRA","CHEFE DE SECAO","SECRETARIA MUNICIPAL DO MEIO AMBIENTE","SECAO DE PRODUTOS RECICLAVEIS","305.515.888-10"]
[30162,"MARCOS ROBERTO PEREIRA","SERVENTE DE PEDREIRO","SECRETARIA MUNICIPAL DO MEIO AMBIENTE","SECAO DE MANUTENCAO E REFORMA","191.425.378-78"]
[24296,"MARIA DE FATIMA SANTISSIMA DA SILVA PEREIRA","AJUDANTE GERAL","SECRETARIA MUNICIPAL DO MEIO AMBIENTE","SECAO DE MANUTENCAO E CONSERVACAO DE PRA","137.307.958-48"]
[23910,"MARIA DO SOCORRO AMARO FURTADO","AJUDANTE GERAL","SECRETARIA MUNICIPAL DO MEIO AMBIENTE","SECAO DE PRODUCAO DE MUDAS","120.259.868-40"]
[30895,"MARIA GORETI DOS REIS ANDRADE","AJUDANTE GERAL","SECRETARIA MUNICIPAL DO MEIO AMBIENTE","SECAO DE MANEJO ANIMAL","061.811.378-90"]
[24133,"MARIA JOSE ALVES DA CRUZ","AJUDANTE GERAL","SECRETARIA MUNICIPAL DO MEIO AMBIENTE","DIVISAO DE PRACAS E AREAS VERDES","558.141.661-34"]
[70640,"MARINA SIQUEIRA GODOY","BIOLOGIA","SECRETARIA MUNICIPAL DO MEIO AMBIENTE","DEPARTAMENTO ZOO-BOTANICO","472.292.328-05"]
[24774,"MARISTELA FRABETTI","SERVENTE DE LIMPEZA","SECRETARIA MUNICIPAL DO MEIO AMBIENTE","SECAO DE VETERINARIA","078.880.038-85"]
[70620,"MATHEUS GOMES DE ANDRADE","CIÊNCIAS BIOLÓGICAS","SECRETARIA MUNICIPAL DO MEIO AMBIENTE","SECAO DE EDUCACAO AMBIENTAL","435.120.108-81"]
[14930,"MAURICIO THEODORO","COLETOR DE LIXO","SECRETARIA MUNICIPAL DO MEIO AMBIENTE","SECAO DE PRODUTOS RECICLAVEIS","083.916.958-24"]
[30491,"MAURO NUNES MACHADO","PEDREIRO","SECRETARIA MUNICIPAL DO MEIO AMBIENTE","DIVISAO DE PRACAS E AREAS VERDES","004.714.498-06"]
[35668,"MAYARA TAMY NAKATA","DESENHISTA TECNICO","SECRETARIA MUNICIPAL DO MEIO AMBIENTE","DEPARTAMENTO ZOO-BOTANICO","408.523.868-00"]
[34761,"MESSIAS LUIS FARIA","AGENTE DE COMBATE AS ENDEMIAS","SECRETARIA MUNICIPAL DO MEIO AMBIENTE","SECAO DE ESTUDOS E CONSCIENTIZACAO AMBIE","302.067.778-50"]
[31114,"NADIA NASCIMENTO NUNES DE ALMEIDA","BIÓLOGO","SECRETARIA MUNICIPAL DO MEIO AMBIENTE","DEPARTAMENTO ZOO-BOTANICO","305.449.118-81"]
[31052,"NATHALIA CRISTINA DE SOUZA","AGENTE DE ADMINISTRACAO","SECRETARIA MUNICIPAL DO MEIO AMBIENTE","DEPARTAMENTO ZOO-BOTANICO","335.283.368-03"]
[36094,"NATHAN FELIPE LEME DE SA","AJUDANTE GERAL","SECRETARIA MUNICIPAL DO MEIO AMBIENTE","SECAO DE MANEJO ANIMAL","438.215.038-82"]
[30696,"NEIDE APARECIDA CASEMIRO SANCHO","CHEFE DE SECAO","SECRETARIA MUNICIPAL DO MEIO AMBIENTE","SECAO DE ANALISE VEGETAL","200.111.078-20"]
[29400,"NILSON JOSE DOS SANTOS","AJUDANTE GERAL","SECRETARIA MUNICIPAL DO MEIO AMBIENTE","SECAO DE EDUCACAO AMBIENTAL","190.964.318-12"]
[33298,"NILTON CARLOS FIGUEIRA","AJUDANTE GERAL","SECRETARIA MUNICIPAL DO MEIO AMBIENTE","SECAO DE NUTRICAO ANIMAL","141.365.058-92"]
[24199,"NIVALDO CAPARROL","AJUDANTE GERAL","SECRETARIA MUNICIPAL DO MEIO AMBIENTE","SECAO DE OBRAS E MANUTENCAO","039.878.368-30"]
[35635,"ODETE DOMINGUES CAETANO CHAVES","SECRETARIA DE SECRETARIA","SECRETARIA MUNICIPAL DO MEIO AMBIENTE","SECRETARIA MUNICIPAL DO MEIO AMBIENTE","079.500.348-07"]
[20690,"ODINEY RODRIGUES","AJUDANTE GERAL","SECRETARIA MUNICIPAL DO MEIO AMBIENTE","SECAO DE MANUTENCAO E CONSERVACAO DE PRA","158.245.878-25"]
[33453,"OSVANDA CRISTINA CONRADO","AJUDANTE GERAL","SECRETARIA MUNICIPAL DO MEIO AMBIENTE","SECAO DE PRODUTOS RECICLAVEIS","256.606.578-00"]
[17354,"PAULO CESAR RAIMUNDO","AJUDANTE GERAL","SECRETARIA MUNICIPAL DO MEIO AMBIENTE","SECAO DE JARDINAGEM","162.035.928-62"]
[32664,"PAULO HENRIQUE DRAGHI","OPERADOR DE MAQUINAS","SECRETARIA MUNICIPAL DO MEIO AMBIENTE","SECAO DE PESQUISAS EM RECURSOS NATURAIS","310.599.658-36"]
[33357,"PAULO HENRIQUE SANZOVO FRAGA","MOTORISTA","SECRETARIA MUNICIPAL DO MEIO AMBIENTE","SECAO DE PRODUTOS RECICLAVEIS","254.079.948-52"]
[23236,"PAULO ROBERTO SILVA","AJUDANTE GERAL","SECRETARIA MUNICIPAL DO MEIO AMBIENTE","SECAO DE MANUTENCAO E CONSERVACAO DE PRA","253.258.858-63"]
[25630,"PAULO SERGIO MARQUES","AJUDANTE GERAL","SECRETARIA MUNICIPAL DO MEIO AMBIENTE","SECAO DE PRODUTOS RECICLAVEIS","145.716.628-31"]
[907087,"PEDRO HENRIQUE DA SILVA PEREIRA","MIRIM","SECRETARIA MUNICIPAL DO MEIO AMBIENTE","GABINETE DO SECRETARIO - SEMMA","445.919.248-90"]
[13981,"PEDRO RAFAEL DE CARVALHO","JARDINEIRO","SECRETARIA MUNICIPAL DO MEIO AMBIENTE","SECAO DE MANUTENCAO E CONSERVACAO DE PRA","079.024.148-08"]
[70637,"PEDRO SILVA NOCERA","ARQUITETURA","SECRETARIA MUNICIPAL DO MEIO AMBIENTE","DEPARTAMENTO ZOO-BOTANICO","073.725.985-08"]
[33749,"RAFAEL DE CAMPOS SOUZA","AJUDANTE GERAL","SECRETARIA MUNICIPAL DO MEIO AMBIENTE","DIVISAO DE PRACAS E AREAS VERDES","357.216.958-54"]
[33297,"RAPHAEL MARTINS RAMOS","AJUDANTE GERAL","SECRETARIA MUNICIPAL DO MEIO AMBIENTE","SECAO DE MANUTENCAO E CONSERVACAO DE PRA","347.282.428-03"]
[25668,"REINALDO PEREIRA DE OLIVEIRA","AJUDANTE GERAL","SECRETARIA MUNICIPAL DO MEIO AMBIENTE","SECAO DE JARDINAGEM","120.081.698-63"]
[29886,"ROBERVAL MARTINS DO AMARAL","AJUDANTE GERAL","SECRETARIA MUNICIPAL DO MEIO AMBIENTE","SECAO DE ADMINISTRACAO E MANUTENCAO - ZO","015.317.258-48"]
[36153,"RODRIGO LOPES MENEGUEL GONCALVES","AJUDANTE GERAL","SECRETARIA MUNICIPAL DO MEIO AMBIENTE","SECAO DE MANEJO ANIMAL","269.323.848-09"]
[34006,"RODRIGO VARELA FRATINE","AJUDANTE GERAL","SECRETARIA MUNICIPAL DO MEIO AMBIENTE","SECAO DE NUTRICAO ANIMAL","330.239.858-12"]
[22724,"ROGERIO LOURENCO DE MOURA","AJUDANTE GERAL","SECRETARIA MUNICIPAL DO MEIO AMBIENTE","SECAO DE MANEJO ANIMAL","170.548.688-62"]
[32335,"ROLDAO ANTONIO PUCI NETO","FUNCAO DE CONFIANCA DE DIRETOR DIVISAO","SECRETARIA MUNICIPAL DO MEIO AMBIENTE","DIVISAO DE CONTROLE E PROJETOS AMBIENTAI","352.128.548-06"]
[25698,"RONALDO ANTONIO DE MOURA","AJUDANTE GERAL","SECRETARIA MUNICIPAL DO MEIO AMBIENTE","SECAO DE JARDINAGEM","290.144.218-85"]
[30141,"SALMIRA MARIA ANTIQUERA SILVA","AJUDANTE GERAL","SECRETARIA MUNICIPAL DO MEIO AMBIENTE","SECAO DE MANEJO ANIMAL","088.050.358-07"]
[31062,"SALVADOR ROBERTO BORGES","TRATORISTA","SECRETARIA MUNICIPAL DO MEIO AMBIENTE","SECAO DE PESQUISAS EM RECURSOS NATURAIS","101.458.658-51"]
[29343,"SAMANTHA PEREIRA LIMA BITTENCOURT","CHEFE DE SECAO","SECRETARIA MUNICIPAL DO MEIO AMBIENTE","SECAO DE EDUCACAO AMBIENTAL","335.233.458-71"]
[70651,"SARAH CORREA BARROCHELO","BIOLOGIA","SECRETARIA MUNICIPAL DO MEIO AMBIENTE","SECAO DE EDUCACAO AMBIENTAL","438.641.608-04"]
[33348,"SAULO AUGUSTO KATZ FERREIRA DO NASCIMENTO","ENGENHEIRO AGRONOMO","SECRETARIA MUNICIPAL DO MEIO AMBIENTE","DEPARTAMENTO ZOO-BOTANICO","321.407.328-12"]
[14872,"SEBASTIAO FRANCISCO VIEIRA","COLETOR DE LIXO","SECRETARIA MUNICIPAL DO MEIO AMBIENTE","SECAO DE PRODUTOS RECICLAVEIS","079.019.988-22"]
[34075,"SERGIO MAXIMIANO","SERRALHEIRO","SECRETARIA MUNICIPAL DO MEIO AMBIENTE","SECAO DE MANUTENCAO E REFORMA","161.871.098-21"]
[25121,"SHEILA MARA DEMARQUI","AGENTE DE SANEAMENTO","SECRETARIA MUNICIPAL DO MEIO AMBIENTE","SECRETARIA MUNICIPAL DO MEIO AMBIENTE","191.426.998-51"]
[33343,"SIDINEI ROCETTI JUNIOR","GUARDA-PARQUE","SECRETARIA MUNICIPAL DO MEIO AMBIENTE","SECAO DE RESERVA ECOLOGICA","307.949.158-09"]
[27658,"SIDNEI RODRIGUES","DIRETOR DE DEPARTAMENTO","SECRETARIA MUNICIPAL DO MEIO AMBIENTE","DEPARTAMENTO DE ACOES E RECURSOS AMBIENT","135.643.198-40"]
[29552,"TEREZA SONIA PEREIRA GOULART","AJUDANTE GERAL","SECRETARIA MUNICIPAL DO MEIO AMBIENTE","SECAO DE ADM E MANUT PCAS E AREAS VERDES","904.829.058-91"]
[35458,"THIAGO HENRIQUE DE LIMA DOS SANTOS","CHEFE DE SECAO","SECRETARIA MUNICIPAL DO MEIO AMBIENTE","SECAO DE ESTUDOS E CONSCIENTIZACAO AMBIE","364.277.778-31"]
[32822,"VAGNER ZANETTI","MOTORISTA","SECRETARIA MUNICIPAL DO MEIO AMBIENTE","DIVISAO DE PRACAS E AREAS VERDES","116.432.678-33"]
[16871,"VALDECI MIGUEL","AJUDANTE GERAL","SECRETARIA MUNICIPAL DO MEIO AMBIENTE","SECAO DE ADMINISTRACAO E MANUTENCAO - ZO","960.003.258-00"]
[15333,"VALDEMIR MARQUES DE SOUZA","AJUDANTE GERAL","SECRETARIA MUNICIPAL DO MEIO AMBIENTE","SECAO DE MANUTENCAO E CONSERVACAO DE PRA","044.684.598-16"]
[30203,"VALDIR ALVES MUNIZ","PEDREIRO","SECRETARIA MUNICIPAL DO MEIO AMBIENTE","DIVISAO DE PRACAS E AREAS VERDES","120.031.068-39"]
[29516,"VALDIRENE LADISLAU","AJUDANTE GERAL","SECRETARIA MUNICIPAL DO MEIO AMBIENTE","SECAO DE PRODUCAO DE MUDAS","191.022.038-80"]
[16481,"VALDOMIRO FERREIRA","AJUDANTE GERAL","SECRETARIA MUNICIPAL DO MEIO AMBIENTE","SECAO DE MANEJO ANIMAL","137.239.988-79"]
[32381,"VALERIA APARECIDA DE CASSIA BARBOSA CARDOSO","AJUDANTE GERAL","SECRETARIA MUNICIPAL DO MEIO AMBIENTE","SECAO DE ADM E MANUT PCAS E AREAS VERDES","371.711.928-14"]
[14899,"VALMIR ANTONIO DOS SANTOS","COLETOR DE LIXO","SECRETARIA MUNICIPAL DO MEIO AMBIENTE","SECAO DE PRODUTOS RECICLAVEIS","096.136.268-59"]
[25702,"VALTER DOS SANTOS JUNIOR","CHEFE DE SECAO","SECRETARIA MUNICIPAL DO MEIO AMBIENTE","SECAO DE JARDINAGEM","215.893.838-26"]
[23962,"VANDERCI PEREIRA","CHEFE DE SECAO","SECRETARIA MUNICIPAL DO MEIO AMBIENTE","SECAO DE MANEJO ANIMAL","256.307.608-07"]
[32510,"VANESSA SIDNEIA RODRIGUES","AGENTE DE PROTECAO AMBIENTAL","SECRETARIA MUNICIPAL DO MEIO AMBIENTE","DEPARTAMENTO DE ACOES E RECURSOS AMBIENT","293.950.068-11"]
[32399,"VANIA APARECIDA DA SILVA PEIXOTO","CHEFE DE SECAO","SECRETARIA MUNICIPAL DO MEIO AMBIENTE","SECAO DE COLECOES VEGETAIS","216.580.028-57"]
[32463,"VANIA PAULA RODRIGUES QUINTANA","ATENDENTE","SECRETARIA MUNICIPAL DO MEIO AMBIENTE","SERVICO DE ADM. E EXPEDIENTE (SEMMA)","132.512.888-06"]
[29658,"VINICIUS SEMENTILI CARDOSO","CHEFE DE SECAO","SECRETARIA MUNICIPAL DO MEIO AMBIENTE","SECAO DE PROGRAMACAO EDUCACIONAL","338.364.648-37"]
[34829,"VITORIA DE PAULA PEREIRA CESAR","BIÓLOGO","SECRETARIA MUNICIPAL DO MEIO AMBIENTE","SECAO DE PROGRAMACAO EDUCACIONAL","395.795.648-09"]
[32234,"VIVIANE CAMILA DE OLIVEIRA","BIÓLOGO","SECRETARIA MUNICIPAL DO MEIO AMBIENTE","SECAO DE COLECOES VEGETAIS","307.570.608-62"]
[34060,"WILLIAM LONDON LUCAS DE ALMEIDA","AJUDANTE GERAL","SECRETARIA MUNICIPAL DO MEIO AMBIENTE","SECAO DE JARDINAGEM","372.759.448-98"]
[29389,"WILSON BARREIRAS LOPES","AJUDANTE GERAL","SECRETARIA MUNICIPAL DO MEIO AMBIENTE","SECAO DE OBRAS E MANUTENCAO","202.270.001-53"]
[16976,"WILSON DANIEL DA COSTA","AJUDANTE GERAL","SECRETARIA MUNICIPAL DO MEIO AMBIENTE","SECAO DE ADM E MANUT PCAS E AREAS VERDES","028.478.318-86"]
[24172,"WILSON DE SOUZA SANTOS","SERVENTE DE PEDREIRO","SECRETARIA MUNICIPAL DO MEIO AMBIENTE","DIVISAO DE PRACAS E AREAS VERDES","116.567.968-05"]
[27813,"WILSON ROBERTO MANTOVANI","AGENTE DE ADMINISTRACAO","SECRETARIA MUNICIPAL DO MEIO AMBIENTE","SERVICO DE ADM. E EXPEDIENTE (SEMMA)","271.307.108-96"]

{"sheet":"JUSTIFICATIVA 8 HORAS","index":1,"n_rows":59,"n_cols":31,"rows_kept":59,"cut":false,"hidden":false,"merged":[[52,18,52,20],[45,4,45,14],[45,16,45,21],[46,4,46,14],[46,16,46,21],[47,4,47,14],[47,16,47,21],[49,18,49,21],[40,0,40,21],[41,4,41,14],[41,16,41,21],[6,7,8,7],[6,8,8,8],[6,9,8,9],[6,10,8,10],[6,11,8,11],[42,4,42,14],[42,16,42,21],[43,4,43,14],[43,16,43,21],[44,4,44,14],[44,16,44,21],[40,22,47,22],[58,0,59,9],[6,0,8,1],[51,0,52,9],[6,12,7,14],[6,15,7,16],[54,0,54,21],[57,17,57,21],[6,2,8,2],[6,3,8,3],[6,4,8,4],[6,5,8,5],[6,6,8,6],[50,0,50,1],[50,18,50,20],[51,18,51,20],[3,0,4,21],[6,22,8,22],[9,22,39,22],[6,17,6,21],[7,17,7,18],[7,19,7,21],[8,27,10,27],[8,23,10,23],[8,24,10,24],[8,25,10,25],[8,26,10,26]]}
[]
[]
[null,null,null,null,null,null,null,null,null,null,null,null,null,null,null,null,null,null,null,null,"Matrícula: "]
[]
[]
[null,null,null,null,null,null,null,null,null,null,null,{"$f":"IFERROR(IF(ISBLANK(A10),\"00:00\",IF(#REF!>L10,#REF!-L10,\"00:00\")),\"---\")","v":"00:00"},null,null,null,{"$f":"(IF(ISBLANK(R10),(IF(ISBLANK(A10),\"00:00\",IF(#REF!>L10,#REF!-L10,\"00:00\"))),\"---\"))","v":"00:00"},{"$f":"(IF(ISBLANK(S10),\"'\",\"2\"))","v":"'"}]
["DATA",null,"Feriado","Dia Semana","Registro 1","Conver. 1","Registro 2","Conver. 2","Registro 3","Conver. 3","Registro 4","Conver. 4","PARA USO DO SERVIÇO DE ADMINISTRAÇÃO E EXPEDIENTE",null,null,"HORAS",null,"ASSINALE COM \"X\""]
[null,null,null,null,null,null,null,null,null,null,null,null,null,null,null,null,null,"MARCAÇÃO",null,"JUSTIFICATIVA"]
[null,null,null,null,null,null,null,null,null,null,null,null,"Intervalo de almoço realizado","Calculo Almoço","Horário de inicio banco ou extras","NEGATIVA","POSITIVA","INSERIR","EXCLUIR","ADICIONAR AO BANCO DE HORAS","DESCONTAR DO BANCO DE HORAS","HORAS POSITIVAS PARA PAGAMENTO",null,"Verifica se Almoço ta preenchido","Se trabalhou mais de seis horas","Desconta 01 de almoço","Almoço de 01:00","Quantidade correta de exta"]
[null,{"$f":"IF(ISBLANK(A10),\"\",A10)","v":""},{"$f":"IF(ISERROR(MATCH(A10,[1]FERIADOS!A$2:A$50,0)),\"\",\"F\")","v":""},{"$f":"WEEKDAY(A10,1)","v":6},null,{"$f":"IF(ISBLANK(E10),\"\",TIME(INT(E10/100),RIGHT(E10,2),0))","v":""},null,{"$f":"IF(ISBLANK(G10),\"\",TIME(INT(G10/100),RIGHT(G10,2),0))","v":""},null,{"$f":"IF(ISBLANK(I10),\"\",TIME(INT(I10/100),RIGHT(I10,2),0))","v":""},null,{"$f":"IF(ISBLANK(K10),\"\",TIME(INT(K10/100),RIGHT(K10,2),0))","v":""},{"$f":"IF(OR(ISBLANK(G10),ISBLANK(I10)),\"--:--\",J10-H10)","v":"--:--"},null,{"$f":"IF(OR(C10=\"F\",D10=1,D10=7,ISBLANK(A10),ISBLANK(E10),ISBLANK(G10),ISBLANK(I10),ISBLANK(K10)),\"--:--\",IF(M10>TIME(1,0,0),(F10+TIME(9,0,0)+(J10-H10)-TIME(1,0,0)),(F10+TIME(9,0,0))))","v":"--:--"},{"$f":"IFERROR(IF(OR(C10=\"F\",D10=1,D10=7,ISBLANK(A10)),\"--:-- \",(IF(IF(M10=0,((L10-F10)-TIME(8,0,0)),L10-O10)>0,\"0:00\",IF(M10=0,((L10-F10)-TIME(8,0,0)),L10-O10)))),\"--:--\")","v":"--:-- "},{"$f":"IFERROR(IF(OR(T10=\"X\",V10=\"X\"),IF(OR(C10=\"F\",D10=1,D10=7,ISBLANK(A10)),IF(M10>TIME(1,0,0),((H10-F10)+(L10-J10)-((TIME(1,0,0)-M10))),(H10-F10)+(L10-J10)),IF(L10>(O10+TIME(0,14,0)),L10-O10,\"--:--\")),\"--:--\"),\"--:--\")","v":"--:--"},null,null,null,null,null,"ETAPA 1"]
["2024-02-09",{"$f":"IF(ISBLANK(A11),\"\",A11)","v":"2024-02-09"},{"$f":"IF(ISERROR(MATCH(A11,[1]FERIADOS!A$2:A$50,0)),\"\",\"F\")","v":""},{"$f":"WEEKDAY(A11,1)","v":6},800,"08:00:00",1200,"12:00:00",1250,"12:50:00",1715,"17:15:00","00:50:00",{"$f":"IF(ISBLANK(A11),\"--:--\",(IF((J11-H11)<0,IF(OR(H11=\"0\",J11=0),\"00:00\",H11+TIME(1,0,0)),IF(OR(H11=\"0\",J11=0),\"00:00\",J11-H11))))","v":"00:50:00"},{"$f":"IF(OR(C11=\"F\",D11=1,D11=7,ISBLANK(A11),ISBLANK(E11),ISBLANK(G11),ISBLANK(I11),ISBLANK(K11)),F11,IF(M11>TIME(1,0,0),(F11+TIME(9,0,0)+(J11-H11)-TIME(1,0,0)),(F11+TIME(9,0,0))))","v":"17:00:00"},{"$f":"IFERROR(IF(OR(C11=\"F\",D11=1,D11=7,ISBLANK(A11)),\"--:-- \",(IF(IF(M11=0,((L11-F11)-TIME(8,0,0)),L11-O11)>0,\"0:00\",IF(M11=0,((L11-F11)-TIME(8,0,0)),L11-O11)))),\"--:--\")","v":"0:00"},{"$f":"IFERROR(IF(OR(T11=\"X\",V11=\"X\"),IF(OR(C11=\"F\",D11=1,D11=7,ISBLANK(A11)),IF(M11>TIME(1,0,0),((H11-F11)+(L11-J11)-((TIME(1,0,0)-M11))),(H11-F11)+(L11-J11)),IF(L11>(O11+TIME(0,14,10)),L11-O11,\"--:--\")),\"--:--\"),\"--:--\")","v":"00:15:00"},null,null,null,null,"X"]
["2024-02-13","2024-02-13","F",3,800,"08:00:00",1200,"12:00:00",1317,"13:17:00",1700,"17:00:00","01:17:00",{"$f":"IF(ISBLANK(A12),\"--:--\",(IF((J12-H12)<0,IF(OR(H12=\"0\",J12=0),\"00:00\",H12+TIME(1,0,0)),IF(OR(H12=\"0\",J12=0),\"00:00\",J12-H12))))","v":"01:17:00"},{"$f":"IF(OR(C12=\"F\",D12=1,D12=7,ISBLANK(A12),ISBLANK(E12),ISBLANK(G12),ISBLANK(I12),ISBLANK(K12)),\"--:--\",IF(M12>TIME(1,0,0),(F12+TIME(9,0,0)+(J12-H12)-TIME(1,0,0)),(F12+TIME(9,0,0))))","v":"--:--"},"--:-- ","08:00:00",null,null,"X",null,null,null,{"$f":"IF(OR(H12=0,OR(J12=0)),\"Não Realizou Intervalo de Almoço\",\"AlmoçoPreenchido\")","v":"AlmoçoPreenchido"},{"$f":"IF(L12-F12>TIME(6,0,0),\"Sim\",\"Não\")","v":"Sim"},{"$f":"IF(L12-F12>TIME(6,0,0),(L12-F12)-TIME(1,0,0),L12-F12)","v":"08:00:00"},{"$f":"IF(J12-H12>TIME(1,0,0),,H12+TIME(1,0,0))","v":"00:00:00"},{"$f":"((L12-F12)-N12)","v":"07:43:00"},{"$f":"IF(OR(C12=\"F\",D12=1,D12=7,ISBLANK(A12)),IF(OR(H12=0,I12=0),(L12-F12),))","v":"00:00:00"},{"$f":"IF(OR(H12=0,I12=0,(OR(L12-F12)>TIME(6,0,0))),((L12-F12)-TIME(1,0,0)),\"\")","v":"08:00:00"},{"$f":"IF((L12-F12)>TIME(6,0,0),\"1\",\"12\")","v":"1"}]
[null,"",{"$f":"IF(ISERROR(MATCH(A13,[1]FERIADOS!A$2:A$50,0)),\"\",\"F\")","v":""},6,null,"",null,"",null,"",null,"",{"$f":"IF(OR(ISBLANK(G13),ISBLANK(I13)),\"--:--\",J13-H13)","v":"--:--"},"--:--","--:--",{"$f":"IFERROR(IF(OR(C13=\"F\",D13=1,D13=7,ISBLANK(A13)),\"--:-- \",(IF(IF(M13=0,((L13-F13)-TIME(8,0,0)),L13-O13)>0,\"0:00\",IF(M13=0,((L13-F13)-TIME(8,0,0)),L13-O13)))),\"--:--\")","v":"--:-- "},"--:--"]
[null,"",{"$f":"IF(ISERROR(MATCH(A14,[1]FERIADOS!A$2:A$50,0)),\"\",\"F\")","v":""},6,null,"",null,"",null,"",null,"","--:--","--:--","--:--","--:-- ","--:--"]
[null,"",{"$f":"IF(ISERROR(MATCH(A15,[1]FERIADOS!A$2:A$50,0)),\"\",\"F\")","v":""},6,null,"",null,"",null,"",null,"","--:--","--:--","--:--","--:-- ","--:--"]
[null,"",{"$f":"IF(ISERROR(MATCH(A16,[1]FERIADOS!A$2:A$50,0)),\"\",\"F\")","v":""},6,null,"",null,"",null,"",null,"","--:--","--:--","--:--","--:-- ","--:--"]
[null,"",{"$f":"IF(ISERROR(MATCH(A17,[1]FERIADOS!A$2:A$50,0)),\"\",\"F\")","v":""},6,null,"",null,"",null,"",null,"","--:--","--:--","--:--","--:-- ","--:--",null,null,null,null,null,null,{"$f":"((L12-F12)-N12)","v":"07:43:00"}]
[null,"",{"$f":"IF(ISERROR(MATCH(A18,[1]FERIADOS!A$2:A$50,0)),\"\",\"F\")","v":""},6,null,"",null,"",null,"",null,"","--:--","--:--","--:--","--:-- ","--:--"]
[null,"",{"$f":"IF(ISERROR(MATCH(A19,[1]FERIADOS!A$2:A$50,0)),\"\",\"F\")","v":""},6,null,"",null,"",null,"",null,"","--:--","--:--","--:--","--:-- ","--:--"]
[null,"",{"$f":"IF(ISERROR(MATCH(A20,[1]FERIADOS!A$2:A$50,0)),\"\",\"F\")","v":""},6,null,"",null,"",null,"",null,"","--:--","--:--","--:--","--:-- ","--:--"]
[null,"",{"$f":"IF(ISERROR(MATCH(A21,[1]FERIADOS!A$2:A$50,0)),\"\",\"F\")","v":""},6,null,"",null,"",null,"",null,"",{"$f":"IF(OR(ISBLANK(G21),ISBLANK(I21)),\"--:--\",J21-H21)","v":"--:--"},null,{"$f":"IF(OR(C21=\"F\",D21=1,D21=7,ISBLANK(A21),ISBLANK(E21),ISBLANK(G21),ISBLANK(I21),ISBLANK(K21)),\"--:--\",IF(M21>TIME(1,0,0),(F21+TIME(9,0,0)+(J21-H21)-TIME(1,0,0)),(F21+TIME(9,0,0))))","v":"--:--"},"--:-- ","--:--"]
[null,"",{"$f":"IF(ISERROR(MATCH(A22,[1]FERIADOS!A$2:A$50,0)),\"\",\"F\")","v":""},6,null,"",null,"",null,"",null,"","--:--",null,"--:--","--:-- ","--:--"]
[null,"",{"$f":"IF(ISERROR(MATCH(A23,[1]FERIADOS!A$2:A$50,0)),\"\",\"F\")","v":""},6,null,"",null,"",null,"",null,"","--:--",null,"--:--","--:-- ","--:--"]
[null,"",{"$f":"IF(ISERROR(MATCH(A24,[1]FERIADOS!A$2:A$50,0)),\"\",\"F\")","v":""},6,null,"",null,"",null,"",null,"","--:--",null,"--:--","--:-- ","--:--"]
[null,"",{"$f":"IF(ISERROR(MATCH(A25,[1]FERIADOS!A$2:A$50,0)),\"\",\"F\")","v":""},6,null,"",null,"",null,"",null,"","--:--",null,"--:--","--:-- ","--:--"]
[null,"",{"$f":"IF(ISERROR(MATCH(A26,[1]FERIADOS!A$2:A$50,0)),\"\",\"F\")","v":""},6,null,"",null,"",null,"",null,"","--:--",null,"--:--","--:-- ","--:--"]
[null,"",{"$f":"IF(ISERROR(MATCH(A27,[1]FERIADOS!A$2:A$50,0)),\"\",\"F\")","v":""},6,null,"",null,"",null,"",null,"","--:--",null,"--:--","--:-- ","--:--"]
[null,"",{"$f":"IF(ISERROR(MATCH(A28,[1]FERIADOS!A$2:A$50,0)),\"\",\"F\")","v":""},6,null,"",null,"",null,"",null,"","--:--",null,"--:--","--:-- ","--:--"]
[null,"",{"$f":"IF(ISERROR(MATCH(A29,[1]FERIADOS!A$2:A$50,0)),\"\",\"F\")","v":""},6,null,"",null,"",null,"",null,"","--:--",null,"--:--","--:-- ","--:--"]
[null,"",{"$f":"IF(ISERROR(MATCH(A30,[1]FERIADOS!A$2:A$50,0)),\"\",\"F\")","v":""},6,null,"",null,"",null,"",null,"","--:--",null,"--:--","--:-- ","--:--"]
[null,"",{"$f":"IF(ISERROR(MATCH(A31,[1]FERIADOS!A$2:A$50,0)),\"\",\"F\")","v":""},6,null,"",null,"",null,"",null,"","--:--",null,"--:--","--:-- ","--:--"]
[null,"",{"$f":"IF(ISERROR(MATCH(A32,[1]FERIADOS!A$2:A$50,0)),\"\",\"F\")","v":""},6,null,"",null,"",null,"",null,"","--:--",null,"--:--","--:-- ","--:--"]
[null,"",{"$f":"IF(ISERROR(MATCH(A33,[1]FERIADOS!A$2:A$50,0)),\"\",\"F\")","v":""},6,null,"",null,"",null,"",null,"","--:--",null,"--:--","--:-- ","--:--"]
[null,"",{"$f":"IF(ISERROR(MATCH(A34,[1]FERIADOS!A$2:A$50,0)),\"\",\"F\")","v":""},6,null,"",null,"",null,"",null,"","--:--",null,"--:--","--:-- ","--:--"]
[null,"",{"$f":"IF(ISERROR(MATCH(A35,[1]FERIADOS!A$2:A$50,0)),\"\",\"F\")","v":""},6,null,"",null,"",null,"",null,"","--:--",null,"--:--","--:-- ","--:--"]
[null,"",{"$f":"IF(ISERROR(MATCH(A36,[1]FERIADOS!A$2:A$50,0)),\"\",\"F\")","v":""},6,null,"",null,"",null,"",null,"","--:--",null,"--:--","--:-- ","--:--"]
[null,"",{"$f":"IF(ISERROR(MATCH(A37,[1]FERIADOS!A$2:A$50,0)),\"\",\"F\")","v":""},6,null,"",null,"",null,"",null,"","--:--",null,"--:--","--:-- ","--:--"]
[null,"",{"$f":"IF(ISERROR(MATCH(A38,[1]FERIADOS!A$2:A$50,0)),\"\",\"F\")","v":""},6,null,"",null,"",null,"",null,"","--:--",null,"--:--","--:-- ","--:--"]
[null,"",{"$f":"IF(ISERROR(MATCH(A39,[1]FERIADOS!A$2:A$50,0)),\"\",\"F\")","v":""},6,null,"",null,"",null,"",null,"","--:--",null,"--:--","--:-- ","--:--"]
[null,"",{"$f":"IF(ISERROR(MATCH(A40,[1]FERIADOS!A$2:A$50,0)),\"\",\"F\")","v":""},6,null,"",null,"",null,"",null,"","--:--",null,"--:--","--:-- ","--:--"]
["DESCONTO DE HORAS DE DIAS (PERÍODO INTEGRAL) E ABONO",null,null,null,null,null,null,null,null,null,null,null,null,null,null,null,null,null,null,null,null,null,"ETAPA 2"]
[null,{"$f":"IF(ISBLANK(A42),\"\",A42)","v":""},{"$f":"IF(ISERROR(MATCH(A42,[1]FERIADOS!A$2:A$50,0)),\"\",\"F\")","v":""},{"$f":"WEEKDAY(A42,1)","v":6},null,null,null,null,null,null,null,null,null,null,null,{"$f":"IF(E42=\"DESCONTO DE HORAS PERÍODO INTEGRAL\",TIME(8,0,0)*-1,\"--:--\")","v":"--:--"},"* * * * * * * * * * * *  * * * * * * * * * * * * * * * * * * * * * *"]
[null,"",{"$f":"IF(ISERROR(MATCH(A43,[1]FERIADOS!A$2:A$50,0)),\"\",\"F\")","v":""},6,null,null,null,null,null,null,null,null,null,null,null,{"$f":"IF(E43=\"DESCONTO DE HORAS PERÍODO INTEGRAL\",TIME(8,0,0)*-1,\"--:--\")","v":"--:--"},"* * * * * * * * * * * *  * * * * * * * * * * * * * * * * * * * * * *"]
[null,"",{"$f":"IF(ISERROR(MATCH(A44,[1]FERIADOS!A$2:A$50,0)),\"\",\"F\")","v":""},6,null,null,null,null,null,null,null,null,null,null,null,"--:--","* * * * * * * * * * * *  * * * * * * * * * * * * * * * * * * * * * *"]
[null,"",{"$f":"IF(ISERROR(MATCH(A45,[1]FERIADOS!A$2:A$50,0)),\"\",\"F\")","v":""},6,null,null,null,null,null,null,null,null,null,null,null,"--:--","* * * * * * * * * * * *  * * * * * * * * * * * * * * * * * * * * * *"]
[null,"",{"$f":"IF(ISERROR(MATCH(A46,[1]FERIADOS!A$2:A$50,0)),\"\",\"F\")","v":""},6,null,null,null,null,null,null,null,null,null,null,null,"--:--","* * * * * * * * * * * *  * * * * * * * * * * * * * * * * * * * * * *"]
[null,"",{"$f":"IF(ISERROR(MATCH(A47,[1]FERIADOS!A$2:A$50,0)),\"\",\"F\")","v":""},6,null,null,null,null,null,null,null,null,null,null,null,"--:--","* * * * * * * * * * * *  * * * * * * * * * * * * * * * * * * * * * *"]
[null,"",{"$f":"IF(ISERROR(MATCH(A48,[1]FERIADOS!A$2:A$50,0)),\"\",\"F\")","v":""},6,null,null,null,null,null,null,null,null,null,null,null,"--:--","* * * * * * * * * * * *  * * * * * * * * * * * * * * * * * * * * * *"]
[]
[null,null,null,null,null,null,null,null,null,null,null,null,null,null,null,null,null,null,"RESUMO"]
[{"$f":"NOW()","v":"2024-03-11T15:07:01.670"},null,null,null,null,null,null,null,null,null,null,null,null,null,null,null,null,null,"Total de Banco de Horas",null,null,{"$f":"SUMIFS(Q10:Q40,T10:T40,\"X\",V10:V40,\"\")","v":0.33333333333333337}]
[{"$f":"\"Assinatura do(a) servidor(a) \"&CHAR(10)&IFERROR(INDEX(ALFABETICA!$B$2:$B$4997,MATCH(V3,ALFABETICA!$A$2:$A$4997,0)),\"\")","v":"Assinatura do(a) servidor(a) \n"},null,null,null,null,null,null,null,null,null,null,null,null,null,null,null,null,null,"Total de Desc. De Horas",null,null,{"$f":"SUM(P10:P40)+SUM(P42:P48)","v":0}]
[null,null,null,null,null,null,null,null,null,null,null,null,null,null,null,null,null,null,"Total de Horas Pgto.",null,null,{"$f":"SUMIFS(Q10:Q40,T10:T40,\"\",V10:V40,\"X\")","v":1.0416666666666741E-2}]
[]
["À Divisão de Administração e Expediente, autorizo os apontamentos conforme informado acima."]
[]
[]
[]
["Assinatura e carimbo do(a) Superior(a) Imedito(a)"]

{"sheet":"JUSTIFICATIVA 6 HORAS old","index":2,"n_rows":52,"n_cols":23,"rows_kept":52,"cut":false,"hidden":true,"merged":[[43,0,43,1],[43,17,43,19],[7,11,9,11],[7,16,7,20],[8,16,8,17],[8,18,8,20],[42,17,42,20],[7,6,9,6],[7,7,9,7],[7,8,9,8],[7,9,9,9],[7,10,9,10],[51,0,52,8],[44,0,45,8],[11,22,31,26],[7,22,9,26],[4,0,5,20],[7,0,9,1],[7,12,8,13],[7,14,8,15],[44,17,44,19],[45,17,45,19],[47,0,47,20],[50,16,50,20],[7,2,9,2],[7,3,9,3],[7,4,9,4],[7,5,9,5]]}
[]
[]
[]
[null,null,null,null,null,null,null,null,null,null,null,null,null,null,null,null,null,null,null,"Matrícula: ",30286]
[{"$f":"\"Senhor Diretor, eu, \"&IFERROR(INDEX(ALFABETICA!$B$2:$B$4997,MATCH(U4,ALFABETICA!$A$2:$A$4997,0))&\" inscrito(a) no CPF número \"&(INDEX(ALFABETICA!$F$2:$F$4997,MATCH(U4,ALFABETICA!$A$2:$A$4997,0)))&\",  cargo efetivo de \"&(INDEX(ALFABETICA!$C$2:$C$4997,MATCH(U4,ALFABETICA!$A$2:$A$4997,0)))&\", solicito autorização para que o Serviço de Administração e Expediente-SEMMA, faça os seguintes apontamentos em minha frequencia conforme relacionado abaixo. \",\"\")","v":"Senhor Diretor, eu, ELIANA PEREIRA DAMASCENO inscrito(a) no CPF número 190.969.948-92,  cargo efetivo de AGENTE DE ADMINISTRACAO, solicito autorização para que o Serviço de Administração e Expediente-SEMMA, faça os seguintes apontamentos em minha frequencia conforme relacionado abaixo. "}]
[]
[null,null,null,null,null,null,null,null,null,null,{"$f":"IFERROR(IF(ISBLANK(A11),\"00:00\",IF(#REF!>K11,#REF!-K11,\"00:00\")),\"---\")","v":"---"},null,null,null,{"$f":"(IF(ISBLANK(Q11),(IF(ISBLANK(A11),\"00:00\",IF(#REF!>K11,#REF!-K11,\"00:00\"))),\"---\"))","v":{"$error":"#REF!"}},{"$f":"(IF(ISBLANK(R11),\"'\",\"2\"))","v":"'"}]
["DATA",null,"Feriado","Dia Semana","Registro 1","Conver. 1","Registro 2","Conver. 2","Registro 3","Conver. 3","Registro 4","Conver. 4","PARA USO DO SERVIÇO DE ADMINISTRAÇÃO E EXPEDIENTE",null,"HORAS",null,"ASSINALE COM \"X\"",null,null,null,null,null,"ATENÇÃO"]
[null,null,null,null,null,null,null,null,null,null,null,null,null,null,null,null,"MARCAÇÃO",null,"JUSTIFICATIVA"]
[null,null,null,null,null,null,null,null,null,null,null,null,"Intervalo de almoço realizado","Horário de inicio banco ou extras","NEGATIVA","POSITIVA","INSERIR","EXCLUIR","ADICIONAR AO BANCO DE HORAS","DESCONTAR DO BANCO DE HORAS","HORAS POSITIVAS PARA PAGAMENTO"]
["2023-02-24",{"$f":"IF(ISBLANK(A11),\"\",A11)","v":"2023-02-24"},{"$f":"IF(ISERROR(MATCH(A11,[1]FERIADOS!A$2:A$50,0)),\"\",\"F\")","v":""},{"$f":"WEEKDAY(A11,1)","v":6},800,{"$f":"IF(ISBLANK(E11),\"\",TIME(INT(E11/100),RIGHT(E11,2),0))","v":"08:00:00"},1300,null,1400,null,1400,{"$f":"IF(ISBLANK(K11),\"\",TIME(INT(K11/100),RIGHT(K11,2),0))","v":"14:00:00"},{"$f":"IF(OR(ISBLANK(G11),ISBLANK(I11)),\"--:--\",J11-H11)","v":"00:00:00"},{"$f":"IF(OR(C11=\"F\",D11=1,D11=7,ISBLANK(A11),ISBLANK(E11),ISBLANK(G11),ISBLANK(I11),ISBLANK(K11)),\"--:--\",IF(M11>TIME(0,0,0),(F11+TIME(6,0,0)+(J11-H11)-TIME(0,0,0)),(F11+TIME(6,0,0))))","v":"14:00:00"},{"$f":"IF(OR(C11=\"F\",D11=1,D11=7,ISBLANK(A11),ISBLANK(E11),ISBLANK(G11),ISBLANK(I11),ISBLANK(K11)),\"--:--\",IF(K11<=N11,((K11-I11)+(G11-E11))-TIME(6,0,0),\"--:--\"))","v":"--:--"},{"$f":"IF(OR(S11=\"X\",U11=\"X\"),IF(OR(C11=\"F\",D11=1,D11=7,ISBLANK(A11)),(G11-E11+K11-I11),IF(K11>=(N11+TIME(0,15,0)),K11-N11,\"--:--\")),\"--:--\")","v":"--:--"}]
[null,{"$f":"IF(ISBLANK(A12),\"\",A12)","v":""},{"$f":"IF(ISERROR(MATCH(A12,[1]FERIADOS!A$2:A$50,0)),\"\",\"F\")","v":""},null,null,{"$f":"IF(ISBLANK(E12),\"\",TIME(INT(E12/100),RIGHT(E12,2),0))","v":""},0,null,0,null,null,{"$f":"IF(ISBLANK(K12),\"\",TIME(INT(K12/100),RIGHT(K12,2),0))","v":""},{"$f":"IF(OR(ISBLANK(G12),ISBLANK(I12)),\"--:--\",I12-G12)","v":"00:00:00"},{"$f":"IF(OR(C12=\"F\",D12=1,D12=7,ISBLANK(A12),,ISBLANK(E12),ISBLANK(G12),ISBLANK(I12),ISBLANK(K12)),\"--:--\",(E12+TIME(6,0,0)))","v":"--:--"},"--:--","--:--",null,null,null,null,null,null,"As células pintadas em amarelo estão bloqueadas por conterem fórmulas.\n\nPreencher na seguinte ordem, matrícula, data, registro 1 e registro 4.\n\nApós assinalar com “X” o tipo de marcação nos casos de inserção ou exclusão.\n\nNos casos de justificativa, em dias normais, se a jornada de trabalho for inferior a carga horária de 6(seis) horas, a planilha automaticamente irá calcular o saldo negativo exceto os pontos facultativos, feriados, sábados e domingos.\n\nNos demais dias onde a jornada de trabalho seja igual ou superior à 00h15min, o servidor, desde que autorizado pela chefia imediata antecipadamente, poderá assinalar com “X” para o lançamento em banco de horas ou pagamento nos casos excepcionais. \n"]
[null,"",{"$f":"IF(ISERROR(MATCH(A13,[1]FERIADOS!A$2:A$50,0)),\"\",\"F\")","v":""},{"$f":"WEEKDAY(A13,1)","v":6},null,"",0,null,0,null,null,"","00:00:00","--:--","--:--","--:--"]
[null,"",{"$f":"IF(ISERROR(MATCH(A14,[1]FERIADOS!A$2:A$50,0)),\"\",\"F\")","v":""},6,null,"",0,null,0,null,null,"","00:00:00","--:--","--:--","--:--"]
[null,"",{"$f":"IF(ISERROR(MATCH(A15,[1]FERIADOS!A$2:A$50,0)),\"\",\"F\")","v":""},6,null,"",0,null,0,null,null,"","00:00:00","--:--","--:--","--:--"]
[null,"",{"$f":"IF(ISERROR(MATCH(A16,[1]FERIADOS!A$2:A$50,0)),\"\",\"F\")","v":""},6,null,"",0,null,0,null,null,"","00:00:00","--:--","--:--","--:--"]
[null,"",{"$f":"IF(ISERROR(MATCH(A17,[1]FERIADOS!A$2:A$50,0)),\"\",\"F\")","v":""},6,null,"",0,null,0,null,null,"","00:00:00","--:--","--:--","--:--"]
[null,"",{"$f":"IF(ISERROR(MATCH(A18,[1]FERIADOS!A$2:A$50,0)),\"\",\"F\")","v":""},6,null,"",0,null,0,null,null,"","00:00:00","--:--","--:--","--:--"]
[null,"",{"$f":"IF(ISERROR(MATCH(A19,[1]FERIADOS!A$2:A$50,0)),\"\",\"F\")","v":""},6,null,"",0,null,0,null,null,"","00:00:00","--:--","--:--","--:--"]
[null,"",{"$f":"IF(ISERROR(MATCH(A20,[1]FERIADOS!A$2:A$50,0)),\"\",\"F\")","v":""},6,null,"",0,null,0,null,null,"","00:00:00","--:--","--:--","--:--"]
[null,"",{"$f":"IF(ISERROR(MATCH(A21,[1]FERIADOS!A$2:A$50,0)),\"\",\"F\")","v":""},6,null,"",0,null,0,null,null,"","00:00:00","--:--","--:--","--:--"]
[null,"",{"$f":"IF(ISERROR(MATCH(A22,[1]FERIADOS!A$2:A$50,0)),\"\",\"F\")","v":""},6,null,"",0,null,0,null,null,"","00:00:00","--:--","--:--","--:--"]
[null,"",{"$f":"IF(ISERROR(MATCH(A23,[1]FERIADOS!A$2:A$50,0)),\"\",\"F\")","v":""},6,null,"",0,null,0,null,null,"","00:00:00","--:--","--:--","--:--"]
[null,"",{"$f":"IF(ISERROR(MATCH(A24,[1]FERIADOS!A$2:A$50,0)),\"\",\"F\")","v":""},6,null,"",0,null,0,null,null,"","00:00:00","--:--","--:--","--:--"]
[null,"",{"$f":"IF(ISERROR(MATCH(A25,[1]FERIADOS!A$2:A$50,0)),\"\",\"F\")","v":""},6,null,"",0,null,0,null,null,"","00:00:00","--:--","--:--","--:--"]
[null,"",{"$f":"IF(ISERROR(MATCH(A26,[1]FERIADOS!A$2:A$50,0)),\"\",\"F\")","v":""},6,null,"",0,null,0,null,null,"","00:00:00","--:--","--:--","--:--"]
[null,"",{"$f":"IF(ISERROR(MATCH(A27,[1]FERIADOS!A$2:A$50,0)),\"\",\"F\")","v":""},6,null,"",0,null,0,null,null,"","00:00:00","--:--","--:--","--:--"]
[null,"",{"$f":"IF(ISERROR(MATCH(A28,[1]FERIADOS!A$2:A$50,0)),\"\",\"F\")","v":""},6,null,"",0,null,0,null,null,"","00:00:00","--:--","--:--","--:--"]
[null,"",{"$f":"IF(ISERROR(MATCH(A29,[1]FERIADOS!A$2:A$50,0)),\"\",\"F\")","v":""},6,null,"",0,null,0,null,null,"","00:00:00","--:--","--:--","--:--"]
[null,"",{"$f":"IF(ISERROR(MATCH(A30,[1]FERIADOS!A$2:A$50,0)),\"\",\"F\")","v":""},6,null,"",0,null,0,null,null,"","00:00:00","--:--","--:--","--:--"]
[null,"",{"$f":"IF(ISERROR(MATCH(A31,[1]FERIADOS!A$2:A$50,0)),\"\",\"F\")","v":""},6,null,"",0,null,0,null,null,"","00:00:00","--:--","--:--","--:--"]
[null,"",{"$f":"IF(ISERROR(MATCH(A32,[1]FERIADOS!A$2:A$50,0)),\"\",\"F\")","v":""},6,null,"",0,null,0,null,null,"","00:00:00","--:--","--:--","--:--"]
[null,"",{"$f":"IF(ISERROR(MATCH(A33,[1]FERIADOS!A$2:A$50,0)),\"\",\"F\")","v":""},6,null,"",0,null,0,null,null,"","00:00:00","--:--","--:--","--:--"]
[null,"",{"$f":"IF(ISERROR(MATCH(A34,[1]FERIADOS!A$2:A$50,0)),\"\",\"F\")","v":""},6,null,"",0,null,0,null,null,"","00:00:00","--:--","--:--","--:--"]
[null,"",{"$f":"IF(ISERROR(MATCH(A35,[1]FERIADOS!A$2:A$50,0)),\"\",\"F\")","v":""},6,null,"",0,null,0,null,null,"","00:00:00","--:--","--:--","--:--"]
[null,"",{"$f":"IF(ISERROR(MATCH(A36,[1]FERIADOS!A$2:A$50,0)),\"\",\"F\")","v":""},6,null,"",0,null,0,null,null,"","00:00:00","--:--","--:--","--:--"]
[null,"",{"$f":"IF(ISERROR(MATCH(A37,[1]FERIADOS!A$2:A$50,0)),\"\",\"F\")","v":""},6,null,"",0,null,0,null,null,"","00:00:00","--:--","--:--","--:--"]
[null,"",{"$f":"IF(ISERROR(MATCH(A38,[1]FERIADOS!A$2:A$50,0)),\"\",\"F\")","v":""},6,null,"",0,null,0,null,null,"","00:00:00","--:--","--:--","--:--"]
[null,"",{"$f":"IF(ISERROR(MATCH(A39,[1]FERIADOS!A$2:A$50,0)),\"\",\"F\")","v":""},6,null,"",0,null,0,null,null,"","00:00:00","--:--","--:--","--:--"]
[null,"",{"$f":"IF(ISERROR(MATCH(A40,[1]FERIADOS!A$2:A$50,0)),\"\",\"F\")","v":""},6,null,"",0,null,0,null,null,"","00:00:00","--:--","--:--","--:--"]
[null,"",{"$f":"IF(ISERROR(MATCH(A41,[1]FERIADOS!A$2:A$50,0)),\"\",\"F\")","v":""},6,null,"",0,null,0,null,null,"","00:00:00","--:--","--:--","--:--"]
[]
[null,null,null,null,null,null,null,null,null,null,null,null,null,null,null,null,null,"RESUMO"]
[{"$f":"NOW()","v":"2024-03-11T15:07:01.670"},null,null,null,null,null,null,null,null,null,null,null,null,null,null,null,null,"Total de Banco de Horas",null,null,{"$f":"SUMIF(S11:S41,\"X\",P11:P41)","v":0}]
[{"$f":"\"Assinatura do(a) servidor(a) \"&CHAR(10)&IFERROR(INDEX(ALFABETICA!$B$2:$B$4997,MATCH(U4,ALFABETICA!$A$2:$A$4997,0)),\"\")","v":"Assinatura do(a) servidor(a) \nELIANA PEREIRA DAMASCENO"},null,null,null,null,null,null,null,null,null,null,null,null,null,null,null,null,"Total de Desc. De Horas",null,null,{"$f":"SUM(O11:O41)","v":0}]
[null,null,null,null,null,null,null,null,null,null,null,null,null,null,null,null,null,"Total de Horas Pgto.",null,null,{"$f":"SUMIF(U11:U41,\"X\",P11:P41)","v":0}]
[]
["Ao Serviço de Administração e Expediente, autorizo, para providencias."]
[]
[]
[]
["Assinatura e carimbo do(a) Superior(a) Imedito(a)"]